[Event "Titled Tuesday Blitz January 03 Late 2023"]
[White "Zakarian, David"]
[Black "Zampronha, Wladimir Camilo"]
[WhiteFideId "13301276"]
[BlackFideId "2103087"]
[WhiteElo "2306"]
[BlackElo "2176"]
[Result "1/2-1/2"]
[Round "06"]
[TimeControl "180+2"]
[Date "2023.01.03"]
[WhiteClock "0:01:06"]
[BlackClock "0:00:12"]

1. d4 {[%clk 0:03:00]}  Nf6 {[%clk 0:02:59]} 2. c4 {[%clk 0:03:00]}  e6 {[%clk 0:02:59]} 3. Nf3 {[%clk 0:03:00]}  d5 {[%clk 0:02:59]} 4. Nc3 {[%clk 0:03:00]}  Bb4 {[%clk 0:02:58]} 5. Qb3 {[%clk 0:03:00]}  Nc6 {[%clk 0:02:53]} 6. Bg5 {[%clk 0:02:59]}  O-O {[%clk 0:02:44]} 7. e3 {[%clk 0:03:00]}  h6 {[%clk 0:02:39]} 8. Bxf6 {[%clk 0:03:00]}  Qxf6 {[%clk 0:02:38]} 9. cxd5 {[%clk 0:03:00]}  exd5 {[%clk 0:02:39]} 10. Qxd5 {[%clk 0:03:01]}  Be6 {[%clk 0:02:27]} 11. Qb5 {[%clk 0:02:55]}  Bd7 {[%clk 0:02:16]} 12. Bd3 {[%clk 0:02:32]}  Rfe8 {[%clk 0:02:08]} 13. O-O {[%clk 0:02:31]}  Bxc3 {[%clk 0:02:08]} 14. bxc3 {[%clk 0:02:31]}  Ne5 {[%clk 0:01:40]} 15. dxe5 {[%clk 0:02:21]}  Bxb5 {[%clk 0:01:39]} 16. exf6 {[%clk 0:02:19]}  Bxd3 {[%clk 0:01:40]} 17. Rfd1 {[%clk 0:02:20]}  Rad8 {[%clk 0:01:10]} 18. fxg7 {[%clk 0:02:19]}  Be2 {[%clk 0:01:08]} 19. Rxd8 {[%clk 0:02:18]}  Rxd8 {[%clk 0:01:09]} 20. Nd4 {[%clk 0:02:18]}  Ba6 {[%clk 0:01:03]} 21. Nf5 {[%clk 0:01:58]}  Rd2 {[%clk 0:01:00]} 22. Nxh6+ {[%clk 0:01:52]}  Kxg7 {[%clk 0:00:59]} 23. Nf5+ {[%clk 0:01:53]}  Kf6 {[%clk 0:00:59]} 24. Nd4 {[%clk 0:01:53]}  Bc4 {[%clk 0:00:55]} 25. a3 {[%clk 0:01:50]}  c5 {[%clk 0:00:54]} 26. Nf3 {[%clk 0:01:49]}  Rc2 {[%clk 0:00:55]} 27. h4 {[%clk 0:01:43]}  Rxc3 {[%clk 0:00:53]} 28. Ng5 {[%clk 0:01:42]}  Kg6 {[%clk 0:00:47]} 29. Ne4 {[%clk 0:01:41]}  Rc2 {[%clk 0:00:47]} 30. Nxc5 {[%clk 0:01:41]}  Bd5 {[%clk 0:00:45]} 31. Nd3 {[%clk 0:01:39]}  Be4 {[%clk 0:00:34]} 32. Nf4+ {[%clk 0:01:39]}  Kf6 {[%clk 0:00:32]} 33. f3 {[%clk 0:01:40]}  Bc6 {[%clk 0:00:28]} 34. Rd1 {[%clk 0:01:33]}  Rc3 {[%clk 0:00:25]} 35. Rd3 {[%clk 0:01:33]}  Rxd3 {[%clk 0:00:18]} 36. Nxd3 {[%clk 0:01:34]}  a5 {[%clk 0:00:18]} 37. Kf2 {[%clk 0:01:33]}  b5 {[%clk 0:00:18]} 38. e4 {[%clk 0:01:32]}  Bd7 {[%clk 0:00:16]} 39. Ke3 {[%clk 0:01:31]}  Be6 {[%clk 0:00:17]} 40. Kd4 {[%clk 0:01:31]}  Bc4 {[%clk 0:00:17]} 41. Ne5 {[%clk 0:01:29]}  Bf1 {[%clk 0:00:16]} 42. g4 {[%clk 0:01:28]}  b4 {[%clk 0:00:16]} 43. g5+ {[%clk 0:01:27]}  Kg7 {[%clk 0:00:16]} 44. axb4 {[%clk 0:01:28]}  axb4 {[%clk 0:00:14]} 45. Nc6 {[%clk 0:01:27]}  b3 {[%clk 0:00:13]} 46. Kc3 {[%clk 0:01:28]}  Bg2 {[%clk 0:00:12]} 47. Nd4 {[%clk 0:01:28]}  Kg6 {[%clk 0:00:11]} 48. Kxb3 {[%clk 0:01:26]}  Kh5 {[%clk 0:00:12]} 49. e5 {[%clk 0:01:20]}  Kxh4 {[%clk 0:00:11]} 50. g6 {[%clk 0:01:19]}  fxg6 {[%clk 0:00:11]} 51. e6 {[%clk 0:01:20]}  Bh3 {[%clk 0:00:11]} 52. e7 {[%clk 0:01:15]}  Bd7 {[%clk 0:00:10]} 53. Kc3 {[%clk 0:01:10]}  Kg5 {[%clk 0:00:10]} 54. Kd3 {[%clk 0:01:02]}  Kf6 {[%clk 0:00:11]} 55. Ke4 {[%clk 0:01:03]}  Kxe7 {[%clk 0:00:11]} 56. Kf4 {[%clk 0:01:02]}  Kf7 {[%clk 0:00:11]} 57. Kg5 {[%clk 0:01:02]}  Kg7 {[%clk 0:00:12]} 58. f4 {[%clk 0:01:02]}  Be8 {[%clk 0:00:12]} 59. Nf3 {[%clk 0:01:03]}  Bf7 {[%clk 0:00:12]} 60. Ne5 {[%clk 0:01:03]}  Be8 {[%clk 0:00:13]} 61. Ng4 {[%clk 0:01:02]}  Bf7 {[%clk 0:00:13]} 62. Nf6 {[%clk 0:01:02]}  Bb3 {[%clk 0:00:11]} 63. Nd7 {[%clk 0:01:02]}  Kf7 {[%clk 0:00:11]} 64. Ne5+ {[%clk 0:01:02]}  Kg7 {[%clk 0:00:12]} 65. Nxg6 {[%clk 0:01:03]}  Bc2 {[%clk 0:00:12]} 66. Ne5 {[%clk 0:01:03]}  Bb1 {[%clk 0:00:12]} 67. Ng4 {[%clk 0:01:01]}  Bc2 {[%clk 0:00:12]} 68. Ne3 {[%clk 0:01:01]}  Bb1 {[%clk 0:00:12]} 69. Kg4 {[%clk 0:01:00]}  Bd3 {[%clk 0:00:13]} 70. Nd5 {[%clk 0:00:58]}  Bb1 {[%clk 0:00:12]} 71. Kf3 {[%clk 0:00:58]}  Bc2 {[%clk 0:00:12]} 72. Ke3 {[%clk 0:00:59]}  Bb1 {[%clk 0:00:13]} 73. Kd4 {[%clk 0:00:59]}  Bc2 {[%clk 0:00:13]} 74. Ke5 {[%clk 0:01:00]}  Bb1 {[%clk 0:00:13]} 75. Nf6 {[%clk 0:01:00]}  Bc2 {[%clk 0:00:13]} 76. Ne4 {[%clk 0:01:00]}  Bxe4 {[%clk 0:00:12]} 77. Kxe4 {[%clk 0:01:01]}  Kf6 {[%clk 0:00:12]} 78. f5 {[%clk 0:01:01]}  Kf7 {[%clk 0:00:12]} 79. Ke5 {[%clk 0:01:01]}  Ke7 {[%clk 0:00:12]} 80. f6+ {[%clk 0:01:02]}  Kf7 {[%clk 0:00:12]} 81. Kf5 {[%clk 0:01:03]}  Kf8 {[%clk 0:00:12]} 82. Ke6 {[%clk 0:01:04]}  Ke8 {[%clk 0:00:12]} 83. f7+ {[%clk 0:01:05]}  Kf8 {[%clk 0:00:12]} 84. Kf6 {[%clk 0:01:06]} 1/2-1/2


[Site "https://www.chess.com"]

[Event "Titled Tuesday Blitz January 03 Late 2023"]
[White "Liu, Casper"]
[Black "Sloan, Julia Elizabeth"]
[WhiteFideId "1454153"]
[BlackFideId "2018950"]
[WhiteElo "2278"]
[BlackElo "2087"]
[Result "0-1"]
[Round "06"]
[TimeControl "180+2"]
[Date "2023.01.03"]
[WhiteClock "0:00:08"]
[BlackClock "0:01:21"]

1. Nf3 {[%clk 0:03:00]}  Nf6 {[%clk 0:02:57]} 2. b3 {[%clk 0:02:58]}  e6 {[%clk 0:02:56]} 3. Bb2 {[%clk 0:02:59]}  b5 {[%clk 0:02:55]} 4. g3 {[%clk 0:02:59]}  Bb7 {[%clk 0:02:54]} 5. Bg2 {[%clk 0:03:00]}  a6 {[%clk 0:02:54]} 6. O-O {[%clk 0:03:00]}  d5 {[%clk 0:02:54]} 7. a4 {[%clk 0:03:01]}  b4 {[%clk 0:02:52]} 8. Ne5 {[%clk 0:02:56]}  Nbd7 {[%clk 0:02:51]} 9. d3 {[%clk 0:02:51]}  Bc5 {[%clk 0:02:50]} 10. Nd2 {[%clk 0:02:48]}  O-O {[%clk 0:02:49]} 11. d4 {[%clk 0:02:45]}  Bd6 {[%clk 0:02:48]} 12. Nd3 {[%clk 0:02:43]}  Ne4 {[%clk 0:02:46]} 13. Nxe4 {[%clk 0:02:23]}  dxe4 {[%clk 0:02:45]} 14. Ne5 {[%clk 0:02:24]}  Nxe5 {[%clk 0:02:41]} 15. dxe5 {[%clk 0:02:24]}  Bc5 {[%clk 0:02:41]} 16. e3 {[%clk 0:02:17]}  Qxd1 {[%clk 0:02:37]} 17. Raxd1 {[%clk 0:02:17]}  Rfd8 {[%clk 0:02:37]} 18. Bd4 {[%clk 0:02:14]}  Bf8 {[%clk 0:02:30]} 19. Bb2 {[%clk 0:01:41]}  g6 {[%clk 0:02:28]} 20. c3 {[%clk 0:01:29]}  a5 {[%clk 0:02:24]} 21. Rd4 {[%clk 0:01:18]}  c5 {[%clk 0:02:22]} 22. Rxd8 {[%clk 0:01:01]}  Rxd8 {[%clk 0:02:20]} 23. cxb4 {[%clk 0:01:01]}  axb4 {[%clk 0:02:17]} 24. Rc1 {[%clk 0:01:00]}  Rd2 {[%clk 0:02:15]} 25. Ba1 {[%clk 0:00:59]}  Rd3 {[%clk 0:02:14]} 26. Bf1 {[%clk 0:00:55]}  Rxb3 {[%clk 0:02:13]} 27. Bc4 {[%clk 0:00:55]}  Ra3 {[%clk 0:02:12]} 28. Bb2 {[%clk 0:00:54]}  Rxa4 {[%clk 0:02:10]} 29. Rd1 {[%clk 0:00:41]}  Ba6 {[%clk 0:02:09]} 30. Bb3 {[%clk 0:00:36]}  Ra5 {[%clk 0:02:08]} 31. Bc2 {[%clk 0:00:27]}  c4 {[%clk 0:02:06]} 32. Bd4 {[%clk 0:00:25]}  b3 {[%clk 0:02:01]} 33. Bxe4 {[%clk 0:00:24]}  Bb4 {[%clk 0:02:00]} 34. Bb6 {[%clk 0:00:21]}  Rxe5 {[%clk 0:01:58]} 35. Rd8+ {[%clk 0:00:19]}  Bf8 {[%clk 0:01:49]} 36. Bc7 {[%clk 0:00:07]}  Rxe4 {[%clk 0:01:45]} 37. Bd6 {[%clk 0:00:07]}  b2 {[%clk 0:01:35]} 38. Bxf8 {[%clk 0:00:06]}  b1=Q+ {[%clk 0:01:32]} 39. Kg2 {[%clk 0:00:07]}  f5 {[%clk 0:01:26]} 40. Bh6+ {[%clk 0:00:05]}  Kf7 {[%clk 0:01:26]} 41. Rf8+ {[%clk 0:00:06]}  Ke7 {[%clk 0:01:25]} 42. Rh8 {[%clk 0:00:07]}  c3 {[%clk 0:01:22]} 43. Bg5+ {[%clk 0:00:08]}  Kd7 {[%clk 0:01:21]} 44. Rd8+ {[%clk 0:00:08]}  Kc7 {[%clk 0:01:21]} 0-1


[Site "https://www.chess.com"]

[Event "Titled Tuesday Blitz January 03 Late 2023"]
[White "Cruz Gomez, Miguel Angel"]
[Black "Horcajuelo Rocamora, Martin"]
[WhiteFideId "5137160"]
[BlackFideId "24573027"]
[WhiteElo "1950"]
[BlackElo "2107"]
[Result "0-1"]
[Round "06"]
[TimeControl "180+2"]
[Date "2023.01.03"]
[WhiteClock "0:01:15"]
[BlackClock "0:01:56"]

1. Nf3 {[%clk 0:02:59]}  c5 {[%clk 0:02:57]} 2. c4 {[%clk 0:02:58]}  Nc6 {[%clk 0:02:58]} 3. Nc3 {[%clk 0:02:58]}  g6 {[%clk 0:02:58]} 4. g3 {[%clk 0:02:58]}  Bg7 {[%clk 0:02:58]} 5. Bg2 {[%clk 0:02:59]}  Nf6 {[%clk 0:02:58]} 6. O-O {[%clk 0:02:56]}  O-O {[%clk 0:02:58]} 7. d4 {[%clk 0:02:57]}  cxd4 {[%clk 0:02:58]} 8. Nxd4 {[%clk 0:02:58]}  Nxd4 {[%clk 0:02:58]} 9. Qxd4 {[%clk 0:02:57]}  d6 {[%clk 0:02:58]} 10. Qd2 {[%clk 0:02:50]}  Rb8 {[%clk 0:02:54]} 11. b3 {[%clk 0:02:45]}  a6 {[%clk 0:02:52]} 12. a4 {[%clk 0:02:42]}  Nd7 {[%clk 0:02:51]} 13. Bb2 {[%clk 0:02:39]}  Nc5 {[%clk 0:02:51]} 14. Qc2 {[%clk 0:02:36]}  Qb6 {[%clk 0:02:50]} 15. Ra3 {[%clk 0:02:33]}  Bf5 {[%clk 0:02:47]} 16. e4 {[%clk 0:02:32]}  Be6 {[%clk 0:02:47]} 17. Nd5 {[%clk 0:02:24]}  Bxd5 {[%clk 0:02:47]} 18. exd5 {[%clk 0:02:24]}  Qb4 {[%clk 0:02:44]} 19. Rfa1 {[%clk 0:02:14]}  Bxb2 {[%clk 0:02:39]} 20. Qxb2 {[%clk 0:02:15]}  a5 {[%clk 0:02:39]} 21. h4 {[%clk 0:02:08]}  b6 {[%clk 0:02:37]} 22. Bf3 {[%clk 0:02:05]}  e5 {[%clk 0:02:31]} 23. dxe6 {[%clk 0:01:54]}  fxe6 {[%clk 0:02:32]} 24. Kg2 {[%clk 0:01:54]}  Nd3 {[%clk 0:02:28]} 25. Qd4 {[%clk 0:01:50]}  Ne5 {[%clk 0:02:25]} 26. Be4 {[%clk 0:01:43]}  Qc5 {[%clk 0:02:16]} 27. Rd1 {[%clk 0:01:40]}  Qxa3 {[%clk 0:02:14]} 28. f4 {[%clk 0:01:40]}  Nf7 {[%clk 0:02:10]} 29. h5 {[%clk 0:01:40]}  e5 {[%clk 0:02:10]} 30. Qd3 {[%clk 0:01:35]}  exf4 {[%clk 0:02:04]} 31. hxg6 {[%clk 0:01:30]}  Ne5 {[%clk 0:02:04]} 32. Bd5+ {[%clk 0:01:27]}  Kg7 {[%clk 0:01:59]} 33. Qc3 {[%clk 0:01:20]}  f3+ {[%clk 0:01:58]} 34. Kf2 {[%clk 0:01:15]}  hxg6 {[%clk 0:01:56]} 0-1


[Site "https://www.chess.com"]

[Event "Titled Tuesday Blitz January 03 Late 2023"]
[White "Golubev, Mikhail"]
[Black "Slavin, Alexey"]
[WhiteFideId "14100983"]
[BlackFideId "24104388"]
[WhiteElo "2461"]
[BlackElo "2364"]
[Result "1-0"]
[Round "06"]
[TimeControl "180+2"]
[Date "2023.01.03"]
[WhiteClock "0:00:21"]
[BlackClock "0:00:00"]

1. e4 {[%clk 0:03:00]}  Nc6 {[%clk 0:02:58]} 2. Nf3 {[%clk 0:03:00]}  d6 {[%clk 0:02:57]} 3. d4 {[%clk 0:02:59]}  Nf6 {[%clk 0:02:57]} 4. Nc3 {[%clk 0:02:58]}  Bg4 {[%clk 0:02:56]} 5. d5 {[%clk 0:02:57]}  Bxf3 {[%clk 0:02:54]} 6. Qxf3 {[%clk 0:02:55]}  Ne5 {[%clk 0:02:54]} 7. Qd1 {[%clk 0:02:50]}  g6 {[%clk 0:02:53]} 8. f4 {[%clk 0:02:44]}  Ned7 {[%clk 0:02:53]} 9. Be2 {[%clk 0:02:42]}  Bg7 {[%clk 0:02:52]} 10. O-O {[%clk 0:02:42]}  O-O {[%clk 0:02:51]} 11. Bf3 {[%clk 0:02:42]}  c6 {[%clk 0:02:48]} 12. dxc6 {[%clk 0:02:40]}  bxc6 {[%clk 0:02:44]} 13. Kh1 {[%clk 0:02:41]}  Qc7 {[%clk 0:02:35]} 14. Be3 {[%clk 0:02:34]}  Rab8 {[%clk 0:02:26]} 15. Rb1 {[%clk 0:02:34]}  e5 {[%clk 0:02:12]} 16. Qd2 {[%clk 0:02:34]}  Rfe8 {[%clk 0:02:09]} 17. Rfd1 {[%clk 0:02:28]}  Bf8 {[%clk 0:02:08]} 18. g3 {[%clk 0:02:13]}  Rbc8 {[%clk 0:01:52]} 19. Bg2 {[%clk 0:02:13]}  Rcd8 {[%clk 0:01:52]} 20. Bg1 {[%clk 0:02:08]}  Nb6 {[%clk 0:01:49]} 21. Qd3 {[%clk 0:02:06]}  Bh6 {[%clk 0:01:35]} 22. fxe5 {[%clk 0:02:02]}  dxe5 {[%clk 0:01:32]} 23. Qf3 {[%clk 0:01:57]}  Bg7 {[%clk 0:01:25]} 24. Be3 {[%clk 0:01:54]}  Nc4 {[%clk 0:01:21]} 25. Bg5 {[%clk 0:01:48]}  Rxd1+ {[%clk 0:01:17]} 26. Rxd1 {[%clk 0:01:47]}  Nd7 {[%clk 0:00:50]} 27. b3 {[%clk 0:01:46]}  Ncb6 {[%clk 0:00:43]} 28. Be3 {[%clk 0:01:42]}  Nf8 {[%clk 0:00:32]} 29. Bh3 {[%clk 0:01:35]}  Ne6 {[%clk 0:00:31]} 30. Bxe6 {[%clk 0:01:35]}  Rxe6 {[%clk 0:00:30]} 31. a4 {[%clk 0:01:33]}  Re8 {[%clk 0:00:27]} 32. a5 {[%clk 0:01:22]}  Nc8 {[%clk 0:00:23]} 33. a6 {[%clk 0:01:16]}  Nb6 {[%clk 0:00:21]} 34. Qe2 {[%clk 0:01:03]}  h5 {[%clk 0:00:18]} 35. Nb1 {[%clk 0:00:49]}  Rd8 {[%clk 0:00:17]} 36. Rxd8+ {[%clk 0:00:47]}  Qxd8 {[%clk 0:00:17]} 37. Nd2 {[%clk 0:00:47]}  Qd6 {[%clk 0:00:11]} 38. Bxb6 {[%clk 0:00:44]}  axb6 {[%clk 0:00:10]} 39. Nc4 {[%clk 0:00:37]}  Qc7 {[%clk 0:00:07]} 40. Qe3 {[%clk 0:00:32]}  c5 {[%clk 0:00:04]} 41. Qd3 {[%clk 0:00:30]}  Qa7 {[%clk 0:00:03]} 42. Qd8+ {[%clk 0:00:29]}  Kh7 {[%clk 0:00:01]} 43. Qxb6 {[%clk 0:00:29]}  Qa8 {[%clk 0:00:01]} 44. Qb7 {[%clk 0:00:27]}  Qd8 {[%clk 0:00:01]} 45. Qd5 {[%clk 0:00:24]}  Qc7 {[%clk 0:00:00]} 46. Kg2 {[%clk 0:00:22]}  Qa7 {[%clk 0:00:00]} 47. Qb7 {[%clk 0:00:21]} 1-0


[Site "https://www.chess.com"]

[Event "Titled Tuesday Blitz January 03 Late 2023"]
[White "Jenkins, Drake"]
[Black "Le Goff, Ronan"]
[WhiteFideId "2022397"]
[BlackFideId "612073"]
[WhiteElo "2130"]
[BlackElo "2320"]
[Result "0-1"]
[Round "06"]
[TimeControl "180+2"]
[Date "2023.01.03"]
[WhiteClock "0:00:01"]
[BlackClock "0:01:02"]

1. Nf3 {[%clk 0:03:00]}  d5 {[%clk 0:02:58]} 2. c4 {[%clk 0:03:00]}  e6 {[%clk 0:02:58]} 3. g3 {[%clk 0:03:00]}  Nf6 {[%clk 0:02:59]} 4. Bg2 {[%clk 0:03:00]}  dxc4 {[%clk 0:02:58]} 5. O-O {[%clk 0:02:58]}  a6 {[%clk 0:02:57]} 6. a4 {[%clk 0:02:57]}  Nc6 {[%clk 0:02:55]} 7. Qc2 {[%clk 0:02:52]}  Na5 {[%clk 0:02:53]} 8. Ne5 {[%clk 0:02:49]}  Qd4 {[%clk 0:02:49]} 9. Nf3 {[%clk 0:02:47]}  Qc5 {[%clk 0:02:40]} 10. Na3 {[%clk 0:02:44]}  Be7 {[%clk 0:02:30]} 11. d3 {[%clk 0:02:31]}  cxd3 {[%clk 0:02:28]} 12. Qxd3 {[%clk 0:02:31]}  O-O {[%clk 0:02:25]} 13. Be3 {[%clk 0:02:26]}  Qd6 {[%clk 0:02:21]} 14. Qc2 {[%clk 0:02:20]}  Bd7 {[%clk 0:02:18]} 15. Rac1 {[%clk 0:02:05]}  Bc6 {[%clk 0:02:08]} 16. Rfd1 {[%clk 0:01:46]}  Qb4 {[%clk 0:02:05]} 17. Bd2 {[%clk 0:01:40]}  Qb6 {[%clk 0:01:56]} 18. Be3 {[%clk 0:01:31]}  Qb3 {[%clk 0:01:54]} 19. Ne5 {[%clk 0:01:15]}  Qxc2 {[%clk 0:01:48]} 20. Nxc2 {[%clk 0:01:10]}  Bxg2 {[%clk 0:01:47]} 21. Kxg2 {[%clk 0:01:09]}  Nb3 {[%clk 0:01:44]} 22. Rb1 {[%clk 0:01:07]}  Rfd8 {[%clk 0:01:40]} 23. Nd4 {[%clk 0:01:02]}  Nxd4 {[%clk 0:01:38]} 24. Bxd4 {[%clk 0:00:58]}  Bd6 {[%clk 0:01:34]} 25. Nc4 {[%clk 0:00:57]}  Be7 {[%clk 0:01:32]} 26. Na5 {[%clk 0:00:45]}  Rdb8 {[%clk 0:01:28]} 27. Bxf6 {[%clk 0:00:41]}  Bxf6 {[%clk 0:01:27]} 28. Rd7 {[%clk 0:00:42]}  Be5 {[%clk 0:01:25]} 29. Rd3 {[%clk 0:00:22]}  Kf8 {[%clk 0:01:24]} 30. f4 {[%clk 0:00:20]}  Bd6 {[%clk 0:01:24]} 31. Nc4 {[%clk 0:00:20]}  Rd8 {[%clk 0:01:23]} 32. Rbd1 {[%clk 0:00:19]}  Be7 {[%clk 0:01:24]} 33. Kf3 {[%clk 0:00:18]}  Rxd3+ {[%clk 0:01:22]} 34. exd3 {[%clk 0:00:18]}  Rd8 {[%clk 0:01:22]} 35. Ke2 {[%clk 0:00:16]}  b6 {[%clk 0:01:22]} 36. a5 {[%clk 0:00:15]}  b5 {[%clk 0:01:21]} 37. Ne5 {[%clk 0:00:15]}  Bf6 {[%clk 0:01:20]} 38. d4 {[%clk 0:00:13]}  Bxe5 {[%clk 0:01:20]} 39. fxe5 {[%clk 0:00:13]}  c5 {[%clk 0:01:19]} 40. Rc1 {[%clk 0:00:12]}  cxd4 {[%clk 0:01:19]} 41. Rc6 {[%clk 0:00:13]}  Ra8 {[%clk 0:01:14]} 42. Kd3 {[%clk 0:00:12]}  Ke8 {[%clk 0:01:14]} 43. Rc7 {[%clk 0:00:11]}  Rd8 {[%clk 0:01:13]} 44. Ra7 {[%clk 0:00:11]}  f6 {[%clk 0:01:07]} 45. exf6 {[%clk 0:00:07]}  gxf6 {[%clk 0:01:07]} 46. Rxa6 {[%clk 0:00:08]}  Ke7 {[%clk 0:01:06]} 47. Rb6 {[%clk 0:00:07]}  e5 {[%clk 0:01:06]} 48. Rxb5 {[%clk 0:00:07]}  e4+ {[%clk 0:01:04]} 49. Kxe4 {[%clk 0:00:01]}  d3 {[%clk 0:01:04]} 50. Rb7+ {[%clk 0:00:02]}  Ke6 {[%clk 0:01:04]} 51. Rb6+ {[%clk 0:00:02]}  Kf7 {[%clk 0:01:04]} 52. Rb7+ {[%clk 0:00:02]}  Kg6 {[%clk 0:01:04]} 53. a6 {[%clk 0:00:02]}  d2 {[%clk 0:01:04]} 54. a7 {[%clk 0:00:01]}  d1=Q {[%clk 0:01:04]} 55. Rb8 {[%clk 0:00:01]}  Qd4+ {[%clk 0:01:02]} 0-1


[Site "https://www.chess.com"]

[Event "Titled Tuesday Blitz January 03 Late 2023"]
[White "Papayan, Oleg"]
[Black "Sabar, Ethmane Daouda"]
[WhiteFideId "4193911"]
[BlackFideId "19600097"]
[WhiteElo "2253"]
[BlackElo "2040"]
[Result "1-0"]
[Round "06"]
[TimeControl "180+2"]
[Date "2023.01.03"]
[WhiteClock "0:01:16"]
[BlackClock "0:00:42"]

1. d4 {[%clk 0:02:54]}  d5 {[%clk 0:02:58]} 2. Nf3 {[%clk 0:02:54]}  Nf6 {[%clk 0:02:56]} 3. c3 {[%clk 0:02:52]}  c6 {[%clk 0:02:54]} 4. Bf4 {[%clk 0:02:41]}  Qb6 {[%clk 0:02:50]} 5. Qb3 {[%clk 0:02:41]}  Nbd7 {[%clk 0:02:49]} 6. e3 {[%clk 0:02:39]}  e6 {[%clk 0:02:47]} 7. Bd3 {[%clk 0:02:39]}  Be7 {[%clk 0:02:39]} 8. Nbd2 {[%clk 0:02:38]}  O-O {[%clk 0:02:39]} 9. O-O {[%clk 0:02:36]}  Re8 {[%clk 0:02:36]} 10. h3 {[%clk 0:02:36]}  Bf8 {[%clk 0:02:35]} 11. c4 {[%clk 0:02:19]}  h6 {[%clk 0:02:06]} 12. c5 {[%clk 0:02:18]}  Qxb3 {[%clk 0:01:53]} 13. axb3 {[%clk 0:02:18]}  b5 {[%clk 0:01:35]} 14. b4 {[%clk 0:02:02]}  g5 {[%clk 0:01:18]} 15. Bh2 {[%clk 0:01:56]}  g4 {[%clk 0:01:19]} 16. hxg4 {[%clk 0:01:41]}  Nxg4 {[%clk 0:01:19]} 17. Bg3 {[%clk 0:01:38]}  e5 {[%clk 0:01:07]} 18. Bf5 {[%clk 0:01:29]}  Ndf6 {[%clk 0:01:02]} 19. Bxc8 {[%clk 0:01:20]}  Rexc8 {[%clk 0:01:03]} 20. Nxe5 {[%clk 0:01:19]}  Nxe5 {[%clk 0:00:59]} 21. Bxe5 {[%clk 0:01:19]}  Ng4 {[%clk 0:00:56]} 22. Bf4 {[%clk 0:01:19]}  h5 {[%clk 0:00:52]} 23. Ra6 {[%clk 0:01:18]}  Bg7 {[%clk 0:00:50]} 24. Rfa1 {[%clk 0:01:17]}  h4 {[%clk 0:00:42]} 25. Rxa7 {[%clk 0:01:15]}  Rxa7 {[%clk 0:00:42]} 26. Rxa7 {[%clk 0:01:16]} 1-0


[Site "https://www.chess.com"]

[Event "Titled Tuesday Blitz January 03 Late 2023"]
[White "Clawitter, Craig"]
[Black "Melikhov, Evgeny V."]
[WhiteFideId "2023105"]
[BlackFideId "4122046"]
[WhiteElo "2050"]
[BlackElo "2269"]
[Result "0-1"]
[Round "06"]
[TimeControl "180+2"]
[Date "2023.01.03"]
[WhiteClock "0:00:05"]
[BlackClock "0:00:16"]

1. e4 {[%clk 0:03:00]}  c5 {[%clk 0:02:58]} 2. Nf3 {[%clk 0:03:00]}  d6 {[%clk 0:02:58]} 3. d4 {[%clk 0:03:00]}  cxd4 {[%clk 0:02:59]} 4. Nxd4 {[%clk 0:02:58]}  Nf6 {[%clk 0:02:59]} 5. Nc3 {[%clk 0:02:59]}  a6 {[%clk 0:03:00]} 6. Be3 {[%clk 0:02:59]}  e5 {[%clk 0:02:59]} 7. Nb3 {[%clk 0:03:00]}  Be6 {[%clk 0:03:00]} 8. f3 {[%clk 0:03:01]}  Be7 {[%clk 0:03:00]} 9. Qd2 {[%clk 0:02:59]}  O-O {[%clk 0:03:00]} 10. g4 {[%clk 0:02:58]}  Nbd7 {[%clk 0:02:59]} 11. O-O-O {[%clk 0:02:57]}  b5 {[%clk 0:02:58]} 12. Rg1 {[%clk 0:02:58]}  Qc7 {[%clk 0:02:53]} 13. g5 {[%clk 0:02:56]}  Nh5 {[%clk 0:02:53]} 14. Nd5 {[%clk 0:02:54]}  Bxd5 {[%clk 0:02:53]} 15. exd5 {[%clk 0:02:55]}  Nb6 {[%clk 0:02:46]} 16. Na5 {[%clk 0:02:48]}  Nxd5 {[%clk 0:02:43]} 17. Qxd5 {[%clk 0:02:49]}  Qxa5 {[%clk 0:02:43]} 18. Kb1 {[%clk 0:02:43]}  Qc7 {[%clk 0:02:31]} 19. Bd3 {[%clk 0:02:37]}  g6 {[%clk 0:02:22]} 20. Rg4 {[%clk 0:02:31]}  Rac8 {[%clk 0:02:14]} 21. c4 {[%clk 0:02:26]}  b4 {[%clk 0:01:56]} 22. Rc1 {[%clk 0:01:55]}  Qc6 {[%clk 0:01:53]} 23. Qxc6 {[%clk 0:01:39]}  Rxc6 {[%clk 0:01:52]} 24. Be4 {[%clk 0:01:40]}  Rc7 {[%clk 0:01:47]} 25. Bb6 {[%clk 0:01:33]}  Rcc8 {[%clk 0:01:45]} 26. Be3 {[%clk 0:01:18]}  Rb8 {[%clk 0:01:34]} 27. Ba7 {[%clk 0:00:57]}  Rbc8 {[%clk 0:01:34]} 28. Be3 {[%clk 0:00:52]}  a5 {[%clk 0:01:28]} 29. Bb7 {[%clk 0:00:45]}  Rb8 {[%clk 0:01:09]} 30. Bd5 {[%clk 0:00:45]}  Bd8 {[%clk 0:01:03]} 31. c5 {[%clk 0:00:38]}  Bc7 {[%clk 0:01:00]} 32. Rgc4 {[%clk 0:00:25]}  Rfd8 {[%clk 0:00:53]} 33. c6 {[%clk 0:00:13]}  Ng7 {[%clk 0:00:49]} 34. f4 {[%clk 0:00:10]}  Nf5 {[%clk 0:00:47]} 35. Bf2 {[%clk 0:00:08]}  Kg7 {[%clk 0:00:43]} 36. Ba7 {[%clk 0:00:07]}  Ra8 {[%clk 0:00:42]} 37. Bf2 {[%clk 0:00:07]}  Re8 {[%clk 0:00:39]} 38. fxe5 {[%clk 0:00:06]}  Rxe5 {[%clk 0:00:36]} 39. Be4 {[%clk 0:00:04]}  Rae8 {[%clk 0:00:34]} 40. Bxf5 {[%clk 0:00:04]}  Rxf5 {[%clk 0:00:33]} 41. Bg3 {[%clk 0:00:04]}  Re2 {[%clk 0:00:29]} 42. Rd1 {[%clk 0:00:03]}  Rxg5 {[%clk 0:00:23]} 43. Bxd6 {[%clk 0:00:03]}  Bxd6 {[%clk 0:00:23]} 44. Rxd6 {[%clk 0:00:03]}  Rg1+ {[%clk 0:00:23]} 45. Rc1 {[%clk 0:00:04]}  Rxc1+ {[%clk 0:00:23]} 46. Kxc1 {[%clk 0:00:04]}  Re8 {[%clk 0:00:23]} 47. c7 {[%clk 0:00:03]}  Rc8 {[%clk 0:00:23]} 48. Rc6 {[%clk 0:00:03]}  f5 {[%clk 0:00:23]} 49. Kd2 {[%clk 0:00:03]}  g5 {[%clk 0:00:23]} 50. Ke3 {[%clk 0:00:04]}  h5 {[%clk 0:00:23]} 51. Kd4 {[%clk 0:00:04]}  f4 {[%clk 0:00:22]} 52. Ke4 {[%clk 0:00:02]}  Kf7 {[%clk 0:00:22]} 53. Kf5 {[%clk 0:00:02]}  f3 {[%clk 0:00:22]} 54. Rf6+ {[%clk 0:00:02]}  Ke7 {[%clk 0:00:21]} 55. Kxg5 {[%clk 0:00:02]}  Rxc7 {[%clk 0:00:21]} 56. Rxf3 {[%clk 0:00:02]}  Rc2 {[%clk 0:00:21]} 57. Re3+ {[%clk 0:00:02]}  Kd6 {[%clk 0:00:21]} 58. Kxh5 {[%clk 0:00:02]}  Rxh2+ {[%clk 0:00:21]} 59. Kg4 {[%clk 0:00:02]}  Rxb2 {[%clk 0:00:21]} 60. a3 {[%clk 0:00:02]}  Kc5 {[%clk 0:00:20]} 61. axb4+ {[%clk 0:00:02]}  axb4 {[%clk 0:00:21]} 62. Kf4 {[%clk 0:00:03]}  Kc4 {[%clk 0:00:21]} 63. Re8 {[%clk 0:00:02]}  b3 {[%clk 0:00:20]} 64. Rc8+ {[%clk 0:00:03]}  Kd3 {[%clk 0:00:20]} 65. Rd8+ {[%clk 0:00:03]}  Kc2 {[%clk 0:00:20]} 66. Rc8+ {[%clk 0:00:04]}  Kb1 {[%clk 0:00:20]} 67. Ke3 {[%clk 0:00:04]}  Rc2 {[%clk 0:00:19]} 68. Rb8 {[%clk 0:00:05]}  b2 {[%clk 0:00:20]} 69. Kd3 {[%clk 0:00:05]}  Rc7 {[%clk 0:00:19]} 70. Rb6 {[%clk 0:00:05]}  Kc1 {[%clk 0:00:16]} 0-1


[Site "https://www.chess.com"]